{"text_format":"1","workbook":"xlsx","n_sheets":3,"sheets":["Invoice","Calcs","Sheet1"],"not_rendered":{"charts":0,"images":1,"macros":1,"external_links":0,"defined_names":38,"comments":2,"pivot_tables":0},"unopened":[],"bounds":{"document_bytes":16777216,"sheet_cells":100000,"rows_first":2000,"rows_last":500,"rows_between":2000,"halvings":0,"cell_chars":16384,"cell_head_chars":4096},"cells_cut":0,"cells_raw":0,"read":"whole","date_system":"1900"}

{"sheet":"Invoice","index":0,"n_rows":69,"n_cols":20,"rows_kept":69,"cut":false,"hidden":false,"merged":[[65,4,65,10],[62,3,62,6],[64,4,64,10],[62,7,62,10],[47,9,47,10],[48,9,52,10],[47,11,47,12],[63,3,63,10],[53,5,54,5],[53,6,54,8],[48,6,49,8],[51,6,52,8],[50,3,50,4],[51,5,52,5],[55,3,56,4],[55,5,56,5],[61,3,61,6],[54,9,56,10],[55,6,56,8],[61,7,61,10],[61,12,62,13],[61,11,62,11],[55,11,55,12],[10,10,10,13],[10,1,10,8],[8,1,8,8],[6,9,11,9],[6,1,6,8],[6,10,6,13],[12,4,12,5],[61,0,61,2],[55,0,56,2],[53,0,54,2],[54,11,54,12],[12,2,12,3],[29,2,29,10],[30,2,30,10],[25,2,25,10],[16,4,16,8],[36,2,36,10],[17,1,17,3],[60,0,60,2],[51,3,52,4],[60,3,60,11],[13,0,13,1],[32,2,32,10],[44,2,44,10],[0,12,1,13],[1,4,1,11],[2,4,2,11],[3,4,3,11],[0,4,0,11],[7,1,7,8],[7,10,7,13],[4,4,4,11],[8,10,8,13],[40,2,40,10],[18,1,18,3],[19,1,19,3],[35,2,35,10],[33,2,33,10],[14,7,14,8],[15,0,15,1],[16,0,16,1],[31,2,31,10],[27,2,27,10],[26,2,26,10],[28,2,28,10],[37,2,37,10],[34,2,34,10],[19,7,19,8],[39,2,39,10],[38,2,38,10],[6,0,11,0],[12,6,12,8],[9,1,9,8],[14,0,14,1],[15,4,15,5],[24,2,24,10],[15,6,15,8],[15,2,15,3],[20,7,20,10],[20,2,20,6],[23,2,23,10],[14,4,14,5],[14,2,14,3],[17,7,17,8],[18,7,18,8],[22,2,22,10],[21,2,21,10],[16,2,16,3],[13,4,13,5],[13,6,13,8],[11,10,11,13],[12,0,12,1],[13,2,13,3],[9,10,9,13],[48,0,49,2],[48,3,49,4],[48,5,49,5],[53,9,53,10],[50,0,50,2],[46,0,46,10],[47,3,47,4],[47,6,47,8],[45,2,45,10],[51,0,52,2],[53,3,54,4]]}
[null,null,null,null,"Fire Suppression Services, Inc.",null,null,null,null,null,null,null,"INVOICE",null,null,null,"Type Acct. number below",null,"InvIndex",17]
[null,null,null,null,"3802 South 2300 East",null,null,null,null,null,null,null,null,null,null,null,"S1-23##",null,"InvTechName",{"$f":"INDEX(TechList,InvIndex)","v":"Zach&Mike"}]
[null,null,null,null,"Millcreek, Utah  84109-3421",null,null,null,null,null,null,null,{"$f":"+InvTecInit","v":"ZM"},"23####",null,null,"Choose Sales person",null,"InvLicType",{"$f":"IF(INDEX(LType,InvIndex)>0,INDEX(LType,InvIndex),\"\")","v":"AE"}]
[null,null,null,null,"Contractor License No. 92-252208-5501",null,null,null,null,null,null,null,null,null,null,null,null,null,"InvLicNumber",{"$f":"IF(INDEX(LNumber,InvIndex)>0,INDEX(LNumber,InvIndex),\"\")","v":"248/11131"}]
[null,null,null,null,"801.277.6464  •  800.273.6465  •  801.278.2199 - FAX",null,null,null,null,null,null,null,"DATE","2021-04-13",null,null,null,null,"InvTecInit",{"$f":"INDEX(TechInitial,InvIndex)","v":"ZM"}]
[null,null,null,null,null,null,null,null,null,null,null,null,{"$f":"IF(M1=\"invoice\",\"DUE:\",\"EXPIRES:\")","v":"DUE:"},{"$f":"IF(M1=\"invoice\",N5+21,+N5+30)","v":"2021-05-04"},null,"<-Edited"]
["BILLING","Client name",null,null,null,null,null,null,null,"JOB SITE"]
[null,"street",null,null,null,null,null,null,null,null,null,null,null,null,null,null,{"$f":"IF(AND(M1=\"Invoice\",G18=TRUE),EDATE(N5,10),\"\")","v":""}]
[null,"city zip",null,null,null,null,null,null,null,null,null,null,null,null,null,null,{"$f":"IF(M1=\"invoice\",\"Re-file date:-   \" &TEXT(J55,\"yyyy-mmm\"),\"\")","v":"Re-file date:-   No ReFile"}]
[null,null,null,null,null,null,null,null,null,null,null,null,null,null,null,null,{"$f":"+F69","v":"THIS INVOICE  IS  ALSO YOUR STATEMENT"}]
[null,"Ref: name",null,null,null,null,null,null,null,null,null,null,null,null,null,null,{"$f":"+IF(M62>0,\"Total  $\"& TEXT(SUM(M62:M62),\"#,##0.00;;;\"),\"\")","v":"Total  $3,025.52"}]
[null,null,null,null,null,null,null,null,null,null,"Ref: "]
[null,null,"Billing",null,"Job Site",null,null,null,null,null,"TECHNICIAN",{"$f":"IF(L14=\"\",\"\",\"Licence\")","v":"Licence"}]
["CONTACT",null,"Dave Hoggan",null,"Vistoria McBride",null,null,null,null,null,{"$f":"+InvTechName","v":"Zach&Mike"},{"$f":"InvLicType","v":"AE"},{"$f":"+InvLicNumber","v":"248/11131"}]
["OFFICE",null,8012720917,null,8012720971]
["CELL",null,8019492282,null,8016081602,null,"Send to  eMail:"]
[null,null,null,null,null,null,null,null,null,null,null,null,null,null,null,"ReFile"]
[null,"Division",null,null,null,"Schedule",null,"Periodicity",null,null,null,"Mileage One-Way","","TIME",null,{"$f":"IF(H19=\"Annual\",EDATE($N$5,10),IF(H19=\"Bi-Annual\",EDATE($N$5,4),IF(H19=6,EDATE($N$5,2),IF(H19=\"Monthly\",EDATE($N$5,1),\"No ReFile\"))))","v":"No ReFile"}]
[null,"Monitoring",null,null,null,"04 Installation",null,"One-time",null,null,null,"Drive Time One-Way","0 H 00 Min","00:00:00",null,{"$f":"H19","v":"One-time"}]
[null,null,null,null,null,null,null,null,null,null,null,"UNIT PRICE","NON TAX","TAXABLE"]
["T","#",null,null,null,null,null,{"$f":"+N5","v":"2021-04-13"}]
[null,null,{"$f":"\"CMS Account: \" &Q2 &\"   <<- NEW monitoring account install\"","v":"CMS Account: S1-23##   <<- NEW monitoring account install"},null,null,null,null,null,null,null,null,null,{"$f":"IF(A22=0,B22*L22,0)","v":0},{"$f":"+IF(A22=\"T\",B22*L22,\"\")","v":""}]
[null,null,null,null,null,null,null,null,null,null,null,0,0,{"$f":"+IF(A23=\"T\",B23*L23,\"\")","v":""}]
[null,null,"New Install",null,null,null,null,null,null,null,null,null,0,""]
["T",1," NapCo Starlink SLE-LTE-VI Fire cellular dialer",null,null,null,null,null,null,null,null,{"$f":"160*2","v":320},0,320]
[null,null," a 4G StarLink Commercial Fire Communicator.",null,null,null,null,null,null,null,null,null,0,""]
[null,null,"Activated the unit with offsite monitoring and tested.",null,null,null,null,null,null,null,null,null,0,""]
[null,null,null,null,null,null,null,null,null,null,null,null,0,"",null,null,null,null,null,"Cell format is:"]
["T",1,{"$f":"\"Data Programming & activation Cell -\"&Q2","v":"Data Programming & activation Cell -S1-23##"},null,null,null,null,null,null,null,null,75,0,75,null,null,null,null,null,"Accounting w/ bracket-Neagative & blank zero"]
[null,null,null,null,null,null,null,null,null,null,null,null,0,"",null,null,null,null,null," _($* 0.00_);_($* (0.00)_;;\" \""]
["T",1,"Added System Sensor parts: 1 Horn Strobe & 2 Strobe-only devices",null,null,null,null,null,null,null,null,{"$f":"80+(2*62)","v":204},0,204]
["T",1,"100 ft of 14/2 Plenum wire for the additional devices",null,null,null,null,null,null,null,null,{"$f":"135*2","v":270},0,270]
[null,null,null,null,null,null,null,null,null,null,null,null,0,""]
[null,null,null,null,null,null,null,null,null,null,null,null,0,""]
[null,null,null,null,null,null,null,null,null,null,null,null,0,""]
[null,null,"Note: Techs arrived at site at appointed hour",null,null,null,null,null,null,null,null,null,0,""]
[null,null,"They were kept waiting for two hours (4 man hours) ",null,null,null,null,null,null,null,null,null,0,{"$f":"+IF(A37=\"T\",J37*L37,\"\")","v":""}]
[null,null,"before they were given access to site. ",null,null,null,null,null,null,null,null,"SUBTOTALS:",{"$f":"SUM(M21:M37)","v":0},{"$f":"SUM(N21:N37)","v":869}]
[]
[null,null,"Technicians Zach Hagblom, Mike Kimball install"]
[null,null,"Tech hours"]
["T",2,"Tech/s",null,"2021-04-13","@",4,{"$f":"IF(B42>0,IF(B42>1,\"hours each is:\",\"hours is: \"),\"\")","v":"hours each is:"},null,{"$f":"+B42*G42","v":8},{"$f":"IF(B42>0,\"Man Hours\",\"\")","v":"Man Hours"},80,{"$f":"+IF(A42=\"\",J42*L42,0)","v":0},{"$f":"+IF(A42=\"T\",J42*L42,0)","v":640}]
["T",2,"Tech/s",null,"2021-04-15","@",2,{"$f":"IF(B43>0,IF(B43>1,\"hours each is:\",\"hours is: \"),\"\")","v":"hours each is:"},null,{"$f":"+B43*G43","v":4},{"$f":"IF(B43>0,\"Man Hours\",\"\")","v":"Man Hours"},80,{"$f":"+IF(A43=\"\",J43*L43,0)","v":0},{"$f":"+IF(A43=\"T\",J43*L43,0)","v":320}]
["T",2,"Tech/s",null,"2021-04-15","@",5,{"$f":"IF(B44>0,IF(B44>1,\"hours each is:\",\"hours is: \"),\"\")","v":"hours each is:"},null,{"$f":"+B44*G44","v":10},{"$f":"IF(B44>0,\"Man Hours\",\"\")","v":"Man Hours"},80,null,{"$f":"+IF(A44=\"T\",J44*L44,0)","v":800}]
[false,null,{"$f":"IF(A45=TRUE,\"Compliance reporting fee: \",\"\")","v":""}]
[false,null,{"$f":"IF(A46=TRUE,\"WATER Utility reporting fee: \",\"\")","v":""},null,null,null,null,null,null,null,null,null,null,""]
[]
[null,null,null,"DUE WHEN",null,null,"NUMBER ON PROPERTY",null,null,"CODE"]
["EXTINGUISHER",null,null,"2022-04-01",null,null,null,null,null,null,null,true,null,{"$f":"IF(L49=TRUE,SUM(M42:M44)+SUM(N42:N44),0)","v":1760},null,{"$f":"IF(L49=TRUE,\"y\",\"n\")","v":"y"}]
[null,null,null,null,null,null,null,null,null,null,null,true,null,{"$f":"IF(L50=TRUE,ROUNDUP((+M38+N38)*8%,0),0)","v":70},null,"<- ALWAYS"]
["Alarms",null,null,"2022-04-01"]
["EM / EX LIGHTING",null,null,null,null,null,null,null,null,null,null,false,"Travel/Transport",30,null,"<- To Tech for his/her vehicle & their travel cost"]
[null,null,null,null,null,null,null,null,null,null,null,true,"Freight",{"$f":"IF(L53=TRUE,ROUNDUP(rngFreight*(M38+N38),0),0)","v":9},null,"<- Our charge to deliver"]
["HOOD CLEANING",null,null,null,null,null,null,null,null,{"$f":"IF(M1=\"Invoice\",\"REFILE\",\"\")","v":"REFILE"},null,true,"Handling",{"$f":"IF(L54=TRUE,ROUNDUP(rngHandling*(M38+N38),0),0)","v":22},null,"<- The folks that load it"]
[null,null,null,null,null,null,null,null,null,{"$f":"IF(H19=\"Annual\",EDATE($N$5,10),IF(H19=\"Bi-Annual\",EDATE($N$5,4),IF(H19=6,EDATE($N$5,2),IF(H19=\"Monthly\",EDATE($N$5,1),\"No ReFile\"))))","v":"No ReFile"},null,true,null,{"$f":"IF(L55=TRUE,ROUNDUP((+M38+N38)*7%,0),0)","v":61},null,"<- EPA regulation"]
["RISER",null,null,"NONE",null,null,null,null,null,null,null,{"$f":"IF(OR(A45=TRUE,A46=TRUE),\"Compliance reporting fee\",\"\")","v":""},null,{"$f":"SUM(M45:M46)","v":0}]
[null,null,null,null,null,null,null,null,null,null,null,null,"Sales Tax",{"$f":"IF(N38>0,N38*rngTaxMillcreek,0)+(SUM(N49:N56)*rngTaxMillcreek)","v":204.52249999999998},null,"<- moveable assets only"]
["I, RECEIPT OF COPY: CUSTOMER ACKNOWLEDGES RECEIPT OF COPY AND THAT HE UNDERSTANDS ALL OF THIS AGREEMENT AND PARTICULARLY PARAGRAPHS 1,2,3,4 AND 5 ON THE REVERSE "]
["WHICH SETS FORTH COMPANY'S MAXIMUM LIABILITY.  THE SYSTEM'S HAVE BEEN SERVICED  IN ACCORDANCE WITH NATIONAL FIRE PROTECTION STANDARDS AND CODES OR CURRENT MFG."]
["SERVICE REQUIREMENTS AND DOES NOT CERTIFY THE DESIGN AND / OR THE INSTALLATION CRITERIA."]
[]
["Net 15 Days",null,null,"WORK AUTHORIZATION NUMBER",null,null,null,34565,null,null,null,{"$f":"IF(M1=\"INVOICE\",\"TOTAL DUE\",\"Estimated at:\")","v":"TOTAL DUE"},{"$f":"SUM(N49:N57)+N38","v":3025.5225},null,null,"Type in the red cells and"]
[null,null,null,"PURCHASE / WORK  ORDER NUMBER",null,null,null,"S1 2305",null,null,null,null,null,null,null,"the colour will dissappear"]
["  Cash",null,null,"RECEIVED IN GOOD ORDER  AND ACCEPTED",null,null,null,null,null,null,null,"TIMES ARE CORRECT AND JOB COMPLETED SATISFACTORILY ",null,null,null,null,{"$f":"IF(N38>0,N38*rngTaxMillcreek,\"\")+SUM(N49:N56)","v":2015.0025000000001}]
["  Check",null,null,"BY X",null,null,null,null,null,null,null,"CLAIMS WILL NOT BE HONORED AFTER TEN (10) DAYS FROM DATE"]
["   Credit card",null,null,null,"BUYER SHALL PAY SELLER FOR THIS PURCHASE",null,null,null,null,null,null,"OF SERVICE."]
["INTEREST & COLLECTION FEES WILL BE CHARGED ON  OVERDUE ACCOUNTS.",null,null,null,null,null,null,"3% PER MONTH",null,null,"MINIMUM BILLING OF $45.00"]
[]
["Rev: 2020-08-08    10:15",null,null,null,null,{"$f":"IF(M1=\"INVOICE\",\"THIS INVOICE  IS  ALSO YOUR STATEMENT\",\"Quote/Estimate ONLY\")","v":"THIS INVOICE  IS  ALSO YOUR STATEMENT"},null,null,null,null,null,null,null,"THANK YOU"]

{"sheet":"Calcs","index":1,"n_rows":106,"n_cols":37,"rows_kept":106,"cut":false,"hidden":false,"merged":[]}
[]
[]
[]
[null,null,"rngTechList",null,null,null,null,null,null,null,null,"Service"]
[null,null,null,"TechList","LType","LNumber","TechInitial"]
[]
[null,null,1,"ADangerfield","L1","S102811",{"$f":"LEFT(D7,2)","v":"AD"}]
[null,null,2,"Arun",null,null,"AUR"]
[null,null,3,"BGubler","HE",13,{"$f":"LEFT(D9,2)","v":"BG"}]
[null,null,4,"BHolbrook","HE",48,{"$f":"LEFT(D10,2)","v":"BH"}]
[null,null,5,"BNielson","HE",8687,{"$f":"LEFT(D11,2)","v":"BN"}]
[null,null,6,"Bonnie",null,null,{"$f":"LEFT(D12,1)","v":"B"}]
[null,null,7,"DCawley","HE",5355,{"$f":"LEFT(D13,2)","v":"DC"}]
[null,null,8,"Glenn","EE",1463,{"$f":"LEFT(D14,2)","v":"Gl"}]
[null,null,9,"HDangerfield","L3","S102811",{"$f":"LEFT(D15,2)","v":"HD"}]
[null,null,10,"JLeavitt","HE",11107,{"$f":"LEFT(D16,2)","v":"JL"}]
[null,null,11,"KCall","HE",111011,{"$f":"LEFT(D17,2)","v":"KC"}]
[null,null,12,"Kristen",null,null,{"$f":"LEFT(D18,1)","v":"K"}]
[null,null,13,"MKimball","AE",11131,{"$f":"LEFT(D19,2)","v":"MK"}]
[null,null,14,"Office",null,null,{"$f":"LEFT(D20,1)","v":"O"}]
[null,null,15,"TStrickland","HE",3638,{"$f":"LEFT(D21,1)","v":"T"}]
[null,null,16,"Zach","AE",248,{"$f":"LEFT(D22,2)","v":"Za"}]
[null,null,17,"Zach&Mike","AE","248/11131","ZM"]
[]
[]
[null,null,null,null,"rngTCE"]
[null,null,null,null,null,"TCE SP"]
[null,null,null,null,null,0]
[null,null,null,null,null,30]
[null,null,null,null,null,50]
[null,null,null,null,null,55]
[]
[null,null,null,null,null,null,null,"rngTaxMillcreek"]
[null,null,null,null,null,null,null,null,"Millcreek Tax"]
[null,null,null,null,null,null,null,null,{"$f":"0.0725","v":7.2499999999999995E-2}]
[]
[]
[null,null,null,null,null,null,null,null,null,null,"rngMarkUp"]
[null,null,null,null,null,null,null,null,null,null,null,"Ins&Misc"]
[null,null,null,null,null,null,null,null,null,null,null,0.08]
[]
[]
[null,null,null,null,null,null,null,null,null,null,null,null,null,"rngHandling"]
[null,null,null,null,null,null,null,null,null,null,null,null,null,null,"Handling charge"]
[null,null,null,null,null,null,null,null,null,null,null,null,null,null,2.5000000000000001E-2]
[]
[]
[]
[]
[null,null,null,null,null,null,null,null,null,null,null,null,null,null,null,null,"rngFreight"]
[null,null,null,null,null,null,null,null,null,null,null,null,null,null,null,null,null,"Freight Charge"]
[null,null,null,null,null,null,null,null,null,null,null,null,null,null,null,null,null,0.01]
[]
[null,null,null,null,null,null,null,null,null,null,null,null,null,null,null,null,null,null,null,"rngtaxChoice"]
[]
[null,null,null,null,null,null,null,null,null,null,null,null,null,null,null,null,null,null,null,"T"]
[]
[null,null,null,null,null,null,null,null,null,null,null,null,null,null,null,null,null,null,null,null,null,"Contacts","cEmail"]
[null,null,null,null,null,null,null,null,null,null,null,null,null,null,null,null,null,null,null,null,null,"Invoice","apquestions@emcorgroup.com"]
[null,null,null,null,null,null,null,null,null,null,null,null,null,null,null,null,null,null,null,null,null,"Quote","ldschurch@emcorgroup.com"]
[]
[]
[null,null,null,null,null,null,null,null,null,null,null,null,null,null,null,null,null,null,null,null,null,null,null,null,"rngTravel"]
[null,null,null,null,null,null,null,null,null,null,null,null,null,null,null,null,null,null,null,null,null,null,null,null,null,"Reimburse for travel"]
[null,null,null,null,null,null,null,null,null,null,null,null,null,null,null,null,null,null,null,null,null,null,null,null,null,0]
[null,null,null,null,null,null,null,null,null,null,null,null,null,null,null,null,null,null,null,null,null,null,null,null,null,15]
[null,null,null,null,null,null,null,null,null,null,null,null,null,null,null,null,null,null,null,null,null,null,null,null,null,30]
[null,null,null,null,null,null,null,null,null,null,null,null,null,null,null,null,null,null,null,null,null,null,null,null,null,35]
[null,null,null,null,null,null,null,null,null,null,null,null,null,null,null,null,null,null,null,null,null,null,null,null,null,40]
[null,null,null,null,null,null,null,null,null,null,null,null,null,null,null,null,null,null,null,null,null,null,null,null,null,45]
[null,null,null,null,null,null,null,null,null,null,null,null,null,null,null,null,null,null,null,null,null,null,null,null,null,55]
[]
[null,null,null,null,null,null,null,null,null,null,null,null,null,null,null,null,null,null,null,null,null,null,null,null,null,null,null,"rngItemsJob"]
[]
[null,null,null,null,null,null,null,null,null,null,null,null,null,null,null,null,null,null,null,null,null,null,null,null,null,null,null,null,"Alarms"]
[null,null,null,null,null,null,null,null,null,null,null,null,null,null,null,null,null,null,null,null,null,null,null,null,null,null,null,null,"Back flow preventor"]
[null,null,null,null,null,null,null,null,null,null,null,null,null,null,null,null,null,null,null,null,null,null,null,null,null,null,null,null,"eLites"]
[null,null,null,null,null,null,null,null,null,null,null,null,null,null,null,null,null,null,null,null,null,null,null,null,null,null,null,null,"Emergency D&G"]
[null,null,null,null,null,null,null,null,null,null,null,null,null,null,null,null,null,null,null,null,null,null,null,null,null,null,null,null,"Exhaust cleaning"]
[null,null,null,null,null,null,null,null,null,null,null,null,null,null,null,null,null,null,null,null,null,null,null,null,null,null,null,null,"Extinguishers"]
[null,null,null,null,null,null,null,null,null,null,null,null,null,null,null,null,null,null,null,null,null,null,null,null,null,null,null,null,"Monitoring"]
[null,null,null,null,null,null,null,null,null,null,null,null,null,null,null,null,null,null,null,null,null,null,null,null,null,null,null,null,"Other"]
[null,null,null,null,null,null,null,null,null,null,null,null,null,null,null,null,null,null,null,null,null,null,null,null,null,null,null,null,"Suppression Chemical"]
[null,null,null,null,null,null,null,null,null,null,null,null,null,null,null,null,null,null,null,null,null,null,null,null,null,null,null,null,"Suppression Clean Agent"]
[null,null,null,null,null,null,null,null,null,null,null,null,null,null,null,null,null,null,null,null,null,null,null,null,null,null,null,null,"Suppression Sprinkler"]
[]
[null,null,null,null,null,null,null,null,null,null,null,null,null,null,null,null,null,null,null,null,null,null,null,null,null,null,null,null,null,null,null,"rngItemsSchedule"]
[]
[null,null,null,null,null,null,null,null,null,null,null,null,null,null,null,null,null,null,null,null,null,null,null,null,null,null,null,null,null,null,null,null,"01 Prelims"]
[null,null,null,null,null,null,null,null,null,null,null,null,null,null,null,null,null,null,null,null,null,null,null,null,null,null,null,null,null,null,null,null,"02 Mobilisation"]
[null,null,null,null,null,null,null,null,null,null,null,null,null,null,null,null,null,null,null,null,null,null,null,null,null,null,null,null,null,null,null,null,"03 Progress Payment"]
[null,null,null,null,null,null,null,null,null,null,null,null,null,null,null,null,null,null,null,null,null,null,null,null,null,null,null,null,null,null,null,null,"04 Installation"]
[null,null,null,null,null,null,null,null,null,null,null,null,null,null,null,null,null,null,null,null,null,null,null,null,null,null,null,null,null,null,null,null,"05 Finals"]
[null,null,null,null,null,null,null,null,null,null,null,null,null,null,null,null,null,null,null,null,null,null,null,null,null,null,null,null,null,null,null,null,"06 Repair"]
[null,null,null,null,null,null,null,null,null,null,null,null,null,null,null,null,null,null,null,null,null,null,null,null,null,null,null,null,null,null,null,null,"07 Inspection"]
[null,null,null,null,null,null,null,null,null,null,null,null,null,null,null,null,null,null,null,null,null,null,null,null,null,null,null,null,null,null,null,null,"08 Time & Materials"]
[null,null,null,null,null,null,null,null,null,null,null,null,null,null,null,null,null,null,null,null,null,null,null,null,null,null,null,null,null,null,null,null,"09 Invoice"]
[]
[]
[null,null,null,null,null,null,null,null,null,null,null,null,null,null,null,null,null,null,null,null,null,null,null,null,null,null,null,null,null,null,null,null,null,null,null,"rngPeriodicity"]
[]
[null,null,null,null,null,null,null,null,null,null,null,null,null,null,null,null,null,null,null,null,null,null,null,null,null,null,null,null,null,null,null,null,null,null,null,null,"Annual"]
[null,null,null,null,null,null,null,null,null,null,null,null,null,null,null,null,null,null,null,null,null,null,null,null,null,null,null,null,null,null,null,null,null,null,null,null,"Bi-Annual"]
[null,null,null,null,null,null,null,null,null,null,null,null,null,null,null,null,null,null,null,null,null,null,null,null,null,null,null,null,null,null,null,null,null,null,null,null,"Monthly"]
[null,null,null,null,null,null,null,null,null,null,null,null,null,null,null,null,null,null,null,null,null,null,null,null,null,null,null,null,null,null,null,null,null,null,null,null,"One-time"]
[null,null,null,null,null,null,null,null,null,null,null,null,null,null,null,null,null,null,null,null,null,null,null,null,null,null,null,null,null,null,null,null,null,null,null,null,"Quarterly"]

{"sheet":"Sheet1","index":2,"n_rows":11,"n_cols":7,"rows_kept":11,"cut":false,"hidden":false,"merged":[]}
[]
[]
[null,null,null,null,"Time"]
[null,null,null,null,"in hours",null,"Man Hours"]
[null,null,null,null,{"$f":"SUM(E6:E14)","v":8},null,{"$f":"SUM(G6:G14)","v":16}]
[]
[null,"01 Waiting for Access",2,"Tekz",2,null,{"$f":"+C7*E7","v":4}]
[null,"02 Wiring & Devices",2,"Tekz",4,null,{"$f":"+C8*E8","v":8}]
[null,"03 Install Dialer",2,"Tekz",1,null,{"$f":"+C9*E9","v":2}]
[null,"04 Annual Insp",2,"Tekz",1,null,{"$f":"+C10*E10","v":2}]
[null,null,null,null,null,null,{"$f":"+C11*E11","v":0}]